bitfinex/quotes_SOLUSD_20251103
["timestamp","ask_amount","ask_price","bid_price","bid_amount"]
[1762185809259,0.69,167.08,166.99,0.14216157]
[1762185809670,8.59791987,167.04,166.99,0.14216157]
[1762185809957,8.59791987,167.03,166.98,20.592]
[1762185810166,0.69,167.07,166.98,20.592]
[1762185810479,8.59791987,167.01,166.96,0.67]
[1762185810772,8.59791987,166.99,166.96,20.592]
[1762185810979,8.59791987,166.97,166.87,0.67]
[1762185811213,8.59791987,166.92,166.87,0.67]
[1762185811475,8.59791987,166.88,166.78,50.0]
[1762185811782,8.59791987,166.88,166.81,20.592]
[1762185811971,8.59791987,166.85,166.77,18.00126008]
[1762185812162,8.59791987,166.84,166.72,50.0]
[1762185812369,20.592,166.92,166.72,50.0]
[1762185812370,8.59791987,166.83,166.72,5.99808061]
[1762185812564,8.59791987,166.83,166.75,20.592]
[1762185812767,8.59791987,166.82,166.71,5.99843259]
[1762185812971,20.592,166.91,166.75,20.592]
[1762185813176,8.59791987,166.86,166.77,20.592]
[1762185813381,8.59791987,166.86,166.81,20.592]
[1762185813580,8.59791987,166.83,166.7,101.99999999]
[1762185813765,8.59791987,166.81,166.71,5.9984404]
[1762185813964,8.59791987,166.8,166.71,21.25454141]
[1762185814280,8.59791987,166.78,166.69,5.99916011]
[1762185814583,8.59791987,166.79,166.69,5.99916011]
[1762185814885,8.59791987,166.76,166.66,6.00024]
[1762185815067,8.59791987,166.76,166.69,20.592]
[1762185815480,8.59791987,166.76,166.7,0.1]
[1762185815683,8.59791987,166.75,166.7,0.1]
[1762185815871,0.7,166.75,166.7,0.1]
[1762185816192,0.7,166.81,166.7,0.50216157]
[1762185816490,8.59791987,166.81,166.75,0.14216157]
[1762185816785,8.59791987,166.81,166.72,0.14216157]
[1762185816960,8.59791987,166.8,166.74,0.14216157]
[1762185817379,8.59791987,166.79,166.74,0.14216157]
[1762185817570,8.59791987,166.79,166.75,20.592]
[1762185817888,20.592,166.88,166.76,0.14216157]
[1762185817889,8.59791987,166.83,166.76,0.14216157]
[1762185818076,9.29791987,166.83,166.76,20.73416157]
[1762185818395,8.59791987,166.77,166.7,0.1]
[1762185818714,8.59791987,166.76,166.73,20.592]
[1762185818989,8.59791987,166.76,166.7,0.1]
[1762185818990,8.59791987,166.79,166.7,6.09877088]
[1762185819193,8.59791987,166.79,166.73,20.592]
[1762185819375,8.59791987,166.74,166.7,0.1]
[1762185819686,9.29791987,166.74,166.7,0.1]
[1762185819897,8.59791987,166.72,166.7,0.1]
[1762185820385,8.59791987,166.73,166.7,0.1]
[1762185820694,8.59791987,166.74,166.7,0.1]
[1762185820869,8.59791987,166.73,166.7,0.1]
[1762185821290,20.592,166.87,166.73,20.592]
[1762185821486,8.59791987,166.78,166.73,20.592]
[1762185821695,8.59791987,166.76,166.7,0.24216157]
[1762185821996,8.59791987,166.74,166.7,0.1]
[1762185822291,8.59791987,166.73,166.7,0.1]
[1762185822469,8.59791987,166.74,166.7,0.1]
[1762185822674,8.59791987,166.75,166.7,20.692]
[1762185822869,8.59791987,166.76,166.71,0.14216157]
[1762185823070,9.78882769,166.83,166.71,0.14216157]
[1762185823307,8.59791987,166.77,166.71,0.14216157]
[1762185823589,8.59791987,166.76,166.72,20.592]
[1762185823794,8.59791987,166.74,166.72,20.592]
[1762185824097,8.59791987,166.77,166.72,20.592]
[1762185824301,8.59791987,166.77,166.7,0.1]
[1762185824472,10.48882769,166.84,166.72,20.592]
[1762185824780,10.48882769,166.84,166.71,0.26]
[1762185824781,8.59791987,166.8,166.73,20.73416157]
[1762185824985,8.59791987,166.76,166.73,20.592]
[1762185825197,8.59791987,166.74,166.7,0.1]
[1762185825368,9.78882769,166.81,166.7,0.1]
[1762185825369,8.59791987,166.72,166.7,0.1]
[1762185825565,0.7,166.8,166.7,0.1]
[1762185825766,0.7,166.79,166.7,0.1]
[1762185826077,1.99999999,166.9,166.71,9.78882769]
[1762185826391,8.59791987,166.8,166.74,0.14216157]
[1762185826693,8.59791987,166.79,166.74,0.14216157]
[1762185827075,9.29791987,166.79,166.74,0.14216157]
[1762185827272,0.7,166.79,166.74,0.14216157]
[1762185827595,8.59791987,166.81,166.75,20.592]
[1762185827892,0.7,166.83,166.75,20.592]
[1762185828196,0.7,166.83,166.77,20.592]
[1762185828197,9.29791987,166.83,166.77,20.592]
[1762185828496,0.7,166.87,166.78,0.14216157]
[1762185828682,7.70027647,166.86,166.78,0.14216157]
[1762185828985,0.7,166.87,166.75,0.26]
[1762185828986,7.70027647,166.82,166.76,0.14216157]
[1762185829581,7.70027647,166.83,166.76,0.14216157]
[1762185829776,0.7,166.86,166.79,20.592]
[1762185830091,7.70027647,166.84,166.79,20.592]
[1762185830269,7.70027647,166.83,166.75,20.592]
[1762185830476,7.70027647,166.76,166.7,0.1]
[1762185830780,9.78882769,166.81,166.7,0.1]
[1762185831098,7.70027647,166.74,166.7,20.692]
[1762185831269,7.70027647,166.8,166.7,20.692]
[1762185831270,0.7,166.8,166.7,0.1]
[1762185831474,7.70027647,166.75,166.7,0.1]
[1762185832492,7.70027647,166.76,166.7,0.24216157]
[1762185832685,7.70027647,166.75,166.7,0.24216157]
[1762185832891,7.70027647,166.76,166.7,0.24216157]
[1762185833097,7.70027647,166.79,166.73,20.592]
[1762185833392,7.70027647,166.78,166.73,20.592]
[1762185833597,7.70027647,166.77,166.71,20.592]
[1762185834185,7.70027647,166.79,166.72,20.73416157]
[1762185834376,0.7,166.8,166.72,20.73416157]
[1762185834696,7.70027647,166.81,166.72,0.14216157]
[1762185834897,7.70027647,166.8,166.72,0.14216157]
[1762185835200,7.70027647,166.79,166.72,20.73416157]
[1762185835379,7.70027647,166.78,166.72,0.14216157]
[1762185835577,7.70027647,166.78,166.7,26.83290461]
[1762185835978,7.70027647,166.78,166.7,0.24216157]
[1762185836294,7.70027647,166.74,166.7,0.1]
[1762185836692,6.137006,166.81,166.7,0.1]
[1762185836693,7.70027647,166.76,166.7,0.1]
[1762185836892,0.14216157,166.81,166.7,0.1]
[1762185836893,0.7,166.74,166.7,0.1]
[1762185837089,7.70027647,166.78,166.7,0.1]
[1762185837385,7.70027647,166.77,166.7,20.692]
[1762185837593,7.70027647,166.76,166.7,20.692]
[1762185837898,0.7,166.8,166.7,0.1]
[1762185838104,7.70027647,166.78,166.7,0.1]
[1762185838286,7.70027647,166.79,166.7,0.1]
[1762185838486,8.40027647,166.78,166.7,0.1]
[1762185838994,0.7,166.77,166.71,20.592]
[1762185839199,7.70027647,166.79,166.71,20.592]
[1762185839376,7.70027647,166.83,166.73,20.592]
[1762185839577,0.7,166.82,166.73,20.592]
[1762185839799,8.40027647,166.82,166.73,20.592]
[1762185840101,0.7,166.85,166.74,0.40216157]
[1762185840304,0.7,166.85,166.73,20.592]
[1762185840305,7.70027647,166.79,166.73,20.592]
[1762185840605,7.70027647,166.79,166.7,0.24216157]
[1762185840606,7.70027647,166.77,166.7,0.1]
[1762185840978,0.7,166.76,166.7,0.1]
[1762185841394,7.70027647,166.75,166.7,0.1]
[1762185841600,8.40027647,166.76,166.7,0.1]
[1762185842097,7.70027647,166.73,166.7,0.1]
[1762185842277,7.70027647,166.71,166.6,0.162609]
[1762185842480,7.70027647,166.66,166.6,0.162609]
[1762185842689,7.70027647,166.64,166.6,0.162609]
[1762185843099,7.70027647,166.62,166.6,0.162609]
[1762185843310,8.40027647,166.61,166.6,0.162609]
[1762185843479,8.40027647,166.61,166.53,0.1]
[1762185843480,0.7,166.61,166.53,0.1]
[1762185843676,0.7,166.6,166.48,6.10655783]
[1762185843897,0.7,166.6,166.52,0.52]
[1762185844102,9.78882769,166.65,166.52,0.52]
[1762185844294,7.70027647,166.63,166.53,20.592]
[1762185844483,5.00549231,166.62,166.53,20.592]
[1762185844796,5.00549231,166.73,166.59,0.14216157]
[1762185845107,0.7,166.71,166.61,0.14216157]
[1762185845282,0.7,166.71,166.54,50.0]
[1762185845283,5.00549231,166.65,166.5,50.0]
[1762185845481,5.00549231,166.62,166.53,20.592]
[1762185845707,5.00549231,166.66,166.54,9.78882769]
[1762185845894,9.78882769,166.69,166.57,20.592]
[1762185845895,5.00549231,166.68,166.57,20.592]
[1762185846077,0.7,166.67,166.58,0.14216157]
[1762185846279,0.7,166.67,166.57,20.592]
[1762185846280,5.00549231,166.63,166.57,20.592]
[1762185846486,5.70549231,166.63,166.54,20.592]
[1762185846707,5.70462511,166.63,166.57,5.00462511]
[1762185847079,0.7,166.66,166.6,5.00462511]
[1762185847805,0.7,166.66,166.55,0.66216157]
[1762185847806,5.00462511,166.62,166.55,0.14216157]
[1762185848099,5.00462511,166.62,166.48,0.1]
[1762185848100,5.00462511,166.6,166.54,5.00462511]
[1762185848281,5.70462511,166.6,166.54,5.00462511]
[1762185848488,5.00462511,166.58,166.48,0.62]
[1762185848703,0.7,166.59,166.54,5.00462511]
[1762185848704,5.70462511,166.59,166.54,5.00462511]
[1762185848904,5.00462511,166.6,166.55,5.00462511]
[1762185849087,0.7,166.6,166.55,5.00462511]
[1762185849421,20.0016779,166.7,166.58,5.00462511]
[1762185849422,5.00462511,166.63,166.58,5.00462511]
[1762185849712,0.7,166.62,166.58,5.00462511]
[1762185849887,0.7,166.65,166.55,20.592]
[1762185850091,0.7,166.65,166.61,5.00462511]
[1762185850291,5.70462511,166.65,166.6,5.00462511]
[1762185850487,5.00462511,166.61,166.54,5.00462511]
[1762185850686,10.48882769,166.64,166.54,5.00462511]
[1762185850993,5.00462511,166.61,166.55,5.00462511]
[1762185851190,5.00462511,166.6,166.55,5.00462511]
[1762185851386,5.00462511,166.58,166.52,5.00462511]
[1762185851610,5.00462511,166.58,166.53,5.00462511]
[1762185851911,5.70462511,166.58,166.53,5.00462511]
[1762185852116,0.7,166.61,166.55,5.00462511]
[1762185852282,0.7,166.62,166.58,5.00462511]
[1762185852485,5.70462511,166.62,166.57,5.00462511]
[1762185852689,5.00462511,166.59,166.53,25.59662511]
[1762185852903,5.00462511,166.59,166.53,5.00462511]
[1762185853187,0.7,166.62,166.56,5.00462511]
[1762185853386,5.70462511,166.62,166.56,5.00462511]
[1762185853598,5.70462511,166.62,166.57,5.00462511]
[1762185853797,30.38082769,166.66,166.53,20.592]
[1762185853798,14.7934528,166.66,166.6,5.00462511]
[1762185853997,5.70462511,166.61,166.55,5.00462511]
[1762185854187,0.7,166.61,166.56,5.00462511]
[1762185854394,5.70462511,166.6,166.55,5.00462511]
[1762185854594,0.7,166.59,166.55,5.00462511]
[1762185854990,5.00462511,166.56,166.48,0.1]
[1762185855203,5.00462511,166.5,166.48,0.1]
[1762185855601,5.70462511,166.5,166.48,0.1]
[1762185855793,0.7,166.49,166.48,0.1]
[1762185856208,0.14216157,166.57,166.48,0.1]
[1762185856409,5.70462511,166.49,166.48,0.1]
[1762185856590,15.4934528,166.49,166.44,0.1]
[1762185856787,5.00462511,166.45,166.44,0.1]
[1762185857008,5.70462511,166.47,166.44,0.1]
[1762185857224,5.70462511,166.46,166.44,0.1]
[1762185857519,5.70462511,166.46,166.4,5.00462511]
[1762185857520,9.78882769,166.44,166.27,3.13970859]
[1762185857725,9.78882769,166.44,166.26,2.40753558]
[1762185857910,9.78882769,166.42,166.28,0.71]
[1762185858115,5.00462511,166.42,166.36,5.00462511]
[1762185858317,9.78882769,166.45,166.3,5.00462511]
[1762185858318,9.78882769,166.45,166.39,5.00462511]
[1762185858504,4.49241682,166.56,166.3,5.00462511]
[1762185858505,0.14216157,166.48,166.33,20.592]
[1762185858703,5.00462511,166.47,166.37,20.592]
[1762185858898,5.70462511,166.47,166.37,20.592]
[1762185859226,9.78882769,166.51,166.37,20.592]
[1762185859227,0.7,166.46,166.37,20.592]
[1762185859426,0.7,166.46,166.42,5.00462511]
[1762185859592,5.70462511,166.46,166.37,20.592]
[1762185859795,5.00462511,166.42,166.32,0.14216157]
[1762185860105,0.7,166.46,166.32,0.14216157]
[1762185860106,0.7,166.45,166.35,5.00462511]
[1762185860304,5.00462511,166.5,166.39,5.00462511]
[1762185860616,5.00462511,166.47,166.38,20.592]
[1762185860919,5.00462511,166.44,166.32,0.71]
[1762185861116,9.78882769,166.48,166.31,15.80166864]
[1762185861117,5.00462511,166.42,166.37,5.00462511]
[1762185861297,9.93098926,166.45,166.3,0.71]
[1762185861498,0.14216157,166.43,166.27,0.71]
[1762185861712,9.78882769,166.41,166.27,0.71]
[1762185862018,9.78882769,166.39,166.23,0.71]
[1762185862327,9.78882769,166.37,166.21,0.71]
[1762185862491,0.14216157,166.4,166.21,0.71]
[1762185862812,5.00462511,166.37,166.22,9.78882769]
[1762185863020,5.00462511,166.36,166.25,20.592]
[1762185863215,0.7,166.39,166.25,20.592]
[1762185863216,0.7,166.37,166.27,20.592]
[1762185863397,0.7,166.38,166.26,0.71]
[1762185863598,0.7,166.38,166.23,0.71]
[1762185863914,0.7,166.38,166.21,5.00462511]
[1762185863915,9.78882769,166.31,166.21,5.00462511]
[1762185864100,5.00462511,166.3,166.22,0.71]
[1762185864423,5.00462511,166.28,166.23,5.00462511]
[1762185864622,9.93098926,166.33,166.2,5.00462511]
[1762185864623,30.52298926,166.33,166.2,5.00462511]
[1762185864792,5.00462511,166.26,166.19,0.71]
[1762185864997,9.78882769,166.31,166.2,0.71]
[1762185865223,9.78882769,166.31,166.18,0.1]
[1762185865224,0.7,166.3,166.18,0.1]
[1762185865407,9.78882769,166.33,166.26,5.00462511]
[1762185865607,9.78882769,166.28,166.18,0.1]
[1762185865920,0.7,166.29,166.19,0.71]
[1762185866122,9.78882769,166.32,166.19,0.71]
[1762185866123,0.7,166.28,166.19,20.592]
[1762185866298,0.7,166.28,166.18,0.1]
[1762185866498,5.00462511,166.27,166.22,5.00462511]
[1762185866800,0.7,166.28,166.18,0.1]
[1762185866801,0.7,166.28,166.23,5.00462511]
[1762185867112,0.7,166.27,166.18,0.1]
[1762185867318,9.78882769,166.26,166.11,9.78882769]
[1762185867513,14.7934528,166.2,166.08,0.71]
[1762185867723,14.7934528,166.2,166.0,59.02397981]
[1762185867724,5.00462511,166.18,166.01,50.71]
[1762185868021,0.7,166.21,166.03,50.0]
[1762185868222,0.14216157,166.28,166.07,0.14216157]
[1762185868394,9.78882769,166.25,166.03,0.71]
[1762185868593,9.78882769,166.25,166.04,9.78882769]
[1762185868796,9.78882769,166.25,166.03,50.0]
[1762185868797,20.592,166.18,166.0,1.0]
[1762185869021,20.592,166.18,165.95,1.99999999]
[1762185869022,9.78882769,166.13,165.95,50.0]
[1762185869323,9.78882769,166.16,165.96,0.71]
[1762185869524,0.69,166.15,166.03,20.592]
[1762185869698,5.69462511,166.15,165.97,9.78882769]
[1762185869897,0.69,166.15,166.04,20.592]
[1762185870093,1.99999999,166.28,166.13,5.00462511]
[1762185870299,0.69,166.18,166.13,5.00462511]
[1762185870606,5.69462511,166.18,166.11,5.00462511]
[1762185870807,0.69,166.18,166.1,20.592]
[1762185871015,0.69,166.22,166.17,5.00462511]
[1762185871219,0.69,166.27,166.1,26.25662511]
[1762185871402,0.69,166.27,166.1,25.59662511]
[1762185871603,5.00462511,166.24,166.18,5.00462511]
[1762185871804,0.14216157,166.25,166.11,20.592]
[1762185871805,0.69,166.27,166.2,5.00462511]
[1762185872009,0.69,166.26,166.14,20.592]
[1762185872205,0.69,166.26,166.22,5.00462511]
[1762185872408,0.69,166.26,166.15,20.592]
[1762185872613,5.00462511,166.25,166.19,5.00462511]
[1762185872807,5.00462511,166.25,166.1,14.7934528]
[1762185872808,5.00462511,166.22,166.1,14.7934528]
[1762185873009,5.00462511,166.21,166.13,20.592]
[1762185873214,5.00462511,166.16,166.11,5.00462511]
[1762185873415,0.14216157,166.2,165.97,50.66]
[1762185873416,5.84678668,166.2,165.97,50.66]
[1762185873720,0.14216157,166.17,166.0,5.00462511]
[1762185873923,30.38082769,166.18,166.09,5.00462511]
[1762185874132,0.84216157,166.17,166.03,20.592]
[1762185874301,0.84216157,166.17,166.1,5.00462511]
[1762185874507,0.7,166.17,166.06,20.592]
[1762185874703,5.00462511,166.15,166.06,20.592]
[1762185875034,0.7,166.17,166.12,5.00462511]
[1762185875234,5.00462511,166.3,166.12,5.00462511]
[1762185875235,0.7,166.24,166.16,5.00462511]
[1762185875421,0.7,166.24,166.22,5.00462511]
[1762185875731,0.7,166.24,166.16,20.592]
[1762185876113,0.7,166.24,166.1,5.00462511]
[1762185876319,5.00462511,166.21,166.1,5.00462511]
[1762185876515,5.00462511,166.2,166.11,20.592]
[1762185876719,9.93098926,166.21,166.05,0.66]
[1762185876919,0.14216157,166.17,165.98,9.78882769]
[1762185877120,0.7,166.2,166.07,20.592]
[1762185877331,0.14216157,166.18,166.07,20.592]
[1762185877727,0.7,166.17,166.07,20.592]
[1762185877934,5.00462511,166.15,166.07,20.592]
[1762185878139,0.14216157,166.14,165.93,53.14551745]
[1762185878345,0.14216157,166.14,165.91,50.09257551]
[1762185878346,20.592,166.1,165.91,18.09463494]
[1762185878545,0.7,166.09,165.87,1.99999999]
[1762185878773,0.7,166.09,165.87,50.0]
[1762185879061,1.99999999,166.07,165.86,3.14366334]
[1762185879233,1.99999999,166.07,165.79,50.0]
[1762185879234,20.592,166.04,165.79,50.0]
[1762185879558,0.14216157,166.02,165.82,0.66]
[1762185879924,0.7,166.01,165.9,5.00462511]
[1762185880134,0.7,166.01,165.82,0.66]
[1762185880325,0.7,166.01,165.83,0.66]
[1762185880928,0.7,166.04,165.88,1.99999999]
[1762185881136,18.26324235,166.26,166.03,7.33540045]
[1762185881137,0.7,166.17,166.03,7.33540045]
[1762185881323,3.46856237,166.19,166.02,50.0]
[1762185881324,7.33540045,166.19,166.02,50.0]
[1762185881525,4.35575906,166.29,166.06,20.592]
[1762185881526,3.46883143,166.28,166.06,20.592]
[1762185881723,0.7,166.21,166.09,9.78882769]
[1762185881925,0.7,166.21,166.07,0.66]
[1762185882250,0.7,166.21,166.2,7.33540045]
[1762185882439,4.35575906,166.29,166.14,20.592]
[1762185882644,0.7,166.25,166.14,27.92740045]
[1762185882842,0.7,166.25,166.14,20.592]
[1762185883052,0.7,166.25,166.09,20.73416157]
[1762185883231,0.7,166.25,166.13,21.252]
[1762185883436,0.7,166.25,166.1,20.592]
[1762185883636,0.7,166.25,166.11,0.66]
[1762185883851,0.7,166.25,166.22,7.33540045]
[1762185884131,0.7,166.25,166.23,7.33540045]
[1762185884328,8.03540045,166.25,166.09,0.66]
[1762185884534,20.592,166.22,165.99,0.66]
[1762185884763,9.93098926,166.17,165.92,75.81533011]
[1762185884933,9.93098926,166.13,165.95,0.66]
[1762185885138,50.0,166.23,165.95,0.66]
[1762185885139,0.7,166.16,165.95,0.66]
[1762185885450,9.93098926,166.16,165.95,0.66]
[1762185885756,9.93098926,166.16,165.92,6.02683553]
[1762185885757,0.7,166.15,166.08,7.33540045]
[1762185885948,7.33540045,166.1,165.89,100.1]
[1762185886295,0.14216157,166.1,166.0,7.33540045]
[1762185886554,0.7,166.1,165.89,50.0]
[1762185886870,7.33540045,166.09,165.88,9.78882769]
[1762185887043,7.33540045,166.09,165.78,51.21371648]
[1762185887044,1.99999999,166.03,165.84,104.18227564]
[1762185887231,1.99999999,165.98,165.95,7.33540045]
[1762185887569,1.99999999,165.97,165.8,6.03136308]
[1762185887733,0.14216157,166.05,165.79,50.0]
[1762185887734,1.99999999,165.95,165.79,50.0]
[1762185887940,1.99999999,165.94,165.92,7.33540045]
[1762185888135,1.99999999,165.96,165.93,7.33540045]
[1762185888347,9.33540044,165.96,165.76,50.0]
[1762185888557,9.33540044,165.96,165.66,25.81533011]
[1762185888558,1.99999999,165.9,165.87,7.33540045]
[1762185888851,1.99999999,165.89,165.78,7.33540045]
[1762185889152,1.99999999,165.86,165.7,100.0]
[1762185889355,1.99999999,165.92,165.72,100.0]
[1762185889527,0.7,165.95,165.72,100.0]
[1762185889528,1.99999999,165.9,165.72,100.0]
[1762185889733,1.99999999,165.92,165.81,6.03099933]
[1762185889929,1.99999999,165.96,165.85,20.592]
[1762185890147,1.99999999,165.98,165.9,9.78882769]
[1762185890348,1.99999999,166.0,165.93,20.592]
[1762185890563,1.99999999,165.96,165.87,9.78882769]
[1762185890876,1.99999999,165.92,165.74,14.96]
[1762185891178,1.99999999,165.92,165.9,7.33540045]
[1762185891466,1.99999999,165.93,165.82,9.78882769]
[1762185891681,1.99999999,165.95,165.92,7.33540045]
[1762185891881,1.99999999,165.95,165.94,7.33540045]
[1762185892240,1.99999999,165.99,165.94,7.33540045]
[1762185892442,1.99999999,166.03,165.97,20.592]
[1762185892770,1.99999999,166.05,166.02,7.33540045]
[1762185892958,1.99999999,166.05,166.04,7.33540045]
[1762185893160,1.99999999,166.07,165.99,20.592]
[1762185893463,1.99999999,166.11,166.06,7.33540045]
[1762185893669,1.99999999,166.15,166.11,20.592]
[1762185893879,1.99999999,166.19,166.13,20.592]
[1762185894079,1.99999999,166.19,166.18,7.33540045]
[1762185894246,0.7,166.28,166.18,7.33540045]
[1762185894247,1.99999999,166.2,166.18,7.33540045]
[1762185894444,1.99999999,166.2,166.11,20.592]
[1762185894678,1.99999999,166.2,166.19,7.33540045]
[1762185894876,1.99999999,166.19,166.08,0.14216157]
[1762185895179,1.99999999,166.19,166.0,50.26]
[1762185895180,1.99999999,166.15,166.05,9.78882769]
[1762185895366,1.99999999,166.15,166.13,7.33540045]
[1762185895544,0.7,166.23,166.14,7.33540045]
[1762185895545,1.99999999,166.2,166.14,7.33540045]
[1762185895860,1.99999999,166.25,166.19,7.33540045]
[1762185896063,1.99999999,166.25,166.24,7.33540045]
[1762185896258,1.99999999,166.24,166.22,7.33540045]
[1762185896460,1.99999999,166.29,166.14,17.12422814]
[1762185896651,1.99999999,166.23,166.13,0.14216157]
[1762185896855,1.99999999,166.26,166.22,7.33540045]
[1762185897071,1.99999999,166.26,166.25,7.33540045]
[1762185897271,3.51419259,166.26,166.25,7.33540045]
[1762185897478,3.51419259,166.26,166.18,20.592]
[1762185897680,1.99999999,166.25,166.18,20.592]
[1762185897850,1.99999999,166.26,166.24,7.33540045]
[1762185898184,0.7,166.32,166.18,20.592]
[1762185898185,3.51396302,166.25,166.19,9.78882769]
[1762185898475,4.35575906,166.33,166.24,0.14216157]
[1762185898674,3.52270184,166.32,166.24,0.14216157]
[1762185898853,4.35575906,166.36,166.26,20.592]
[1762185899058,1.99999999,166.26,166.09,100.0]
[1762185899263,5.52330705,166.25,166.1,9.78882769]
[1762185899459,1.99999999,166.22,166.2,7.33540045]
[1762185899658,1.99999999,166.23,166.21,7.33540045]
[1762185899871,3.52699288,166.22,166.21,7.33540045]
[1762185900376,3.52699288,166.22,166.21,17.12422814]
[1762185900548,3.53102187,166.22,166.21,7.33540045]
[1762185900947,4.35575906,166.29,166.2,20.592]
[1762185901149,1.99999999,166.27,166.14,50.0]
[1762185901351,4.35575906,166.27,166.26,7.33540045]
[1762185901544,1.99999999,166.29,166.26,7.33540045]
[1762185901768,4.35575906,166.31,166.28,7.33540045]
[1762185902050,4.35575906,166.38,166.33,20.592]
[1762185902254,4.35575906,166.39,166.33,20.592]
[1762185902478,4.35575906,166.4,166.38,7.33540045]
[1762185902648,4.35575906,166.41,166.39,7.33540045]
[1762185902982,0.2,166.42,166.35,20.592]
[1762185902983,0.2,166.42,166.4,7.33540045]
[1762185903171,4.35575906,166.47,166.41,27.92740045]
[1762185903375,6.35575905,166.51,166.39,50.14216157]
[1762185903565,1.99999999,166.49,166.42,9.78882769]
[1762185903761,1.99999999,166.47,166.42,9.78882769]
[1762185903956,1.99999999,166.47,166.41,9.78882769]
[1762185904163,4.35575906,166.52,166.44,9.78882769]
[1762185904360,4.35575906,166.57,166.51,20.592]
[1762185904582,1.99999999,166.6,166.56,7.33540045]
[1762185904756,1.99999999,166.6,166.5,7.33540045]
[1762185904957,4.35575906,166.63,166.26,16.49995486]
[1762185904958,1.99999999,166.59,166.58,7.33540045]
[1762185905358,4.35575906,166.65,166.51,50.0]
[1762185905563,1.99999999,166.67,166.64,7.33540045]
[1762185905872,1.99999999,166.67,166.58,20.592]
[1762185905873,1.99999999,166.67,166.66,7.33540045]
[1762185906068,1.99999999,166.68,166.66,7.33540045]
[1762185906265,0.68,166.72,166.67,7.33540045]
[1762185906590,0.68,166.72,166.59,20.592]
[1762185906888,0.68,166.72,166.71,8.58595964]
[1762185907088,1.99999999,166.62,166.47,50.0]
[1762185907268,1.99999999,166.65,166.61,8.58595964]
[1762185907468,4.35575906,166.71,166.54,9.78882769]
[1762185907469,1.99999999,166.64,166.57,20.592]
[1762185907868,0.68,166.7,166.63,8.58595964]
[1762185908067,2.67999999,166.75,166.69,8.58595964]
[1762185908293,1.99999999,166.8,166.74,8.58595964]
[1762185908461,1.99999999,166.8,166.79,8.58595964]
[1762185908822,0.68,166.81,166.79,8.58595964]
[1762185908957,4.55575906,166.88,166.64,21.00336053]
[1762185908958,0.68,166.8,166.66,50.0]
[1762185909162,1.99999999,166.78,166.77,8.58595964]
[1762185909357,2.67999999,166.8,166.77,8.58595964]
[1762185909582,2.67999999,166.8,166.78,8.58595964]
[1762185909782,1.99999999,166.83,166.79,8.58595964]
[1762185909990,22.59199999,166.79,166.65,9.78882769]
[1762185910185,1.99999999,166.77,166.66,0.14216157]
[1762185910376,10.58595963,166.77,166.58,50.0]
[1762185910565,6.13642395,166.83,166.58,50.0]
[1762185910566,1.99999999,166.71,166.58,56.00306092]
[1762185910771,1.99999999,166.74,166.7,8.58595964]
[1762185910967,1.99999999,166.75,166.73,8.58595964]
[1762185911284,0.68,166.81,166.74,8.58595964]
[1762185911483,0.68,166.81,166.69,0.14216157]
[1762185911968,1.99999999,166.8,166.68,9.78882769]
[1762185912169,0.68,166.79,166.76,8.58595964]
[1762185912485,0.68,166.79,166.68,9.78882769]
[1762185912486,1.99999999,166.78,166.69,0.14216157]
[1762185912904,2.67999999,166.78,166.68,9.78882769]
[1762185913074,0.68,166.78,166.69,0.14216157]
[1762185913274,2.67999999,166.83,166.69,0.14216157]
[1762185913492,0.68,166.83,166.76,9.78882769]
[1762185913674,2.87999999,166.88,166.82,8.58595964]
[1762185913884,0.88,166.88,166.87,8.58595964]
[1762185914187,0.2,166.88,166.87,8.58595964]
[1762185914392,0.88,166.88,166.56,29.78162797]
[1762185914596,1.99999999,166.84,166.77,9.78882769]
[1762185914793,1.49999999,166.83,166.8,8.58595964]
[1762185914994,1.49999999,166.83,166.82,8.58595964]